bitfinex/quotes_BTCUSD_20251001
["timestamp","ask_amount","ask_price","bid_price","bid_amount"]
[1759306934189,0.03038881,114800.0,114790.0,9.66195591]
[1759306934408,0.03038881,114800.0,114790.0,9.59980683]
[1759306934637,0.03738881,114800.0,114790.0,9.61580683]
[1759306934856,0.03738881,114800.0,114790.0,9.16264683]
[1759306935073,0.03738881,114800.0,114790.0,9.61568683]
[1759306935542,0.03738881,114800.0,114790.0,8.90704683]
[1759306935790,0.03738881,114800.0,114790.0,9.61568683]
[1759306936445,0.03738881,114800.0,114790.0,8.90704683]
[1759306936651,0.03738881,114800.0,114790.0,9.61552683]
[1759306937066,0.03738881,114800.0,114790.0,8.90704683]
[1759306937262,0.03738881,114800.0,114790.0,9.52488683]
[1759306937478,0.03738881,114800.0,114790.0,9.61548683]
[1759306938168,0.03738881,114800.0,114790.0,9.61536683]
[1759306939142,0.03738881,114800.0,114790.0,9.67751591]
[1759306939354,0.03738881,114800.0,114790.0,9.79705328]
[1759306939578,0.03738881,114800.0,114790.0,9.76219172]
[1759306939793,0.03738881,114800.0,114790.0,9.84005842]
[1759306940240,0.03738881,114800.0,114790.0,9.86505842]
[1759306940450,0.02338881,114800.0,114790.0,9.12773842]
[1759306940654,0.02738881,114800.0,114790.0,10.21929842]
[1759306940868,0.25909717,114860.0,114840.0,0.17414872]
[1759306941083,0.24712751,114860.0,114850.0,0.52187018]
[1759306941293,0.17615142,114860.0,114850.0,0.52187018]
[1759306941727,0.0020264,114860.0,114850.0,0.52187018]
[1759306942178,0.0020264,114860.0,114850.0,0.53317421]
[1759306942439,0.08943187,114860.0,114850.0,8.88995984]
[1759306942657,4.64e-05,114860.0,114850.0,8.88395984]
[1759306942914,4.64e-05,114860.0,114850.0,8.54219984]
[1759306943139,0.0688864,114860.0,114850.0,9.25027984]
[1759306943364,0.38258689,114860.0,114850.0,0.01530403]
[1759306943810,0.29158689,114860.0,114850.0,0.09056]
[1759306944040,0.29158689,114860.0,114850.0,0.20992]
[1759306944466,0.17414018,114850.0,114840.0,0.02256]
[1759306944689,0.26673565,114850.0,114840.0,0.37954554]
[1759306944907,0.29155565,114850.0,114840.0,0.03398554]
[1759306945116,0.29155565,114850.0,114840.0,0.37962554]
[1759306945365,0.29155565,114850.0,114840.0,0.03398554]
[1759306945584,0.29155565,114850.0,114840.0,0.37962554]
[1759306945793,0.32255565,114850.0,114840.0,0.3722]
[1759306946015,0.29155565,114850.0,114840.0,0.27756]
[1759306946246,0.29155565,114850.0,114840.0,0.37312]
[1759306946462,0.33655565,114850.0,114840.0,0.37308]
[1759306946896,0.29155565,114850.0,114840.0,0.36808]
[1759306947517,0.29155565,114850.0,114840.0,0.02256]
[1759306947656,0.73445565,114850.0,114840.0,0.37958075]
[1759306947874,0.73124565,114850.0,114840.0,0.37958075]
[1759306948080,0.73445565,114850.0,114840.0,0.03406075]
[1759306948487,0.29155565,114850.0,114840.0,0.02256]
[1759306948689,0.29155565,114850.0,114840.0,0.36792]
[1759306948901,0.29155565,114850.0,114840.0,0.02256]
[1759306949362,0.29155565,114850.0,114840.0,0.26792]
[1759306949571,0.29155565,114850.0,114840.0,0.02256]
[1759306949779,0.29155565,114850.0,114840.0,0.2466]
[1759306950409,0.29155565,114850.0,114840.0,0.27728]
[1759306950599,0.34567273,114850.0,114840.0,0.37184]
[1759306950798,0.29967273,114850.0,114840.0,0.36784]
[1759306951291,0.34467273,114850.0,114840.0,0.02756]
[1759306951790,0.34467273,114850.0,114840.0,0.086]
[1759306952026,0.34467273,114850.0,114840.0,0.17656]
[1759306953543,0.34467273,114850.0,114840.0,0.31752]
[1759306954177,0.34467273,114850.0,114840.0,0.37256]
[1759306954550,0.34467273,114850.0,114840.0,0.02756]
[1759306955166,0.34467273,114850.0,114840.0,0.177]
[1759306955506,0.37482463,114850.0,114840.0,0.02756]
[1759306955707,0.37482463,114850.0,114840.0,0.32848]
[1759306956501,0.37483545,114850.0,114840.0,0.32848]
[1759306957534,0.37483545,114850.0,114840.0,0.11812]
[1759306957742,0.37483545,114850.0,114840.0,0.37236]
[1759306957912,0.37483545,114850.0,114840.0,0.02756]
[1759306958134,0.37483545,114850.0,114840.0,0.16772]
[1759306959375,0.37483545,114850.0,114840.0,0.02756]
[1759306959530,0.37483545,114850.0,114840.0,0.3108]
[1759306961871,0.17420085,114810.0,114800.0,0.07295609]
[1759306962171,0.26877632,114810.0,114800.0,0.41739609]
[1759306962383,0.29161632,114810.0,114800.0,0.41739609]
[1759306963009,0.29161632,114810.0,114800.0,0.34444]
[1759306963218,0.30361632,114810.0,114800.0,0.34844]
[1759306963865,0.29161632,114810.0,114800.0,0.34444]
[1759306964109,0.28642632,114810.0,114800.0,0.52383602]
[1759306964324,0.29842632,114810.0,114800.0,0.79951602]
[1759306964531,0.29842632,114810.0,114800.0,0.89007602]
[1759306964920,0.29842632,114810.0,114800.0,0.90150686]
[1759306966760,0.12422547,114810.0,114800.0,0.90150686]
[1759306967136,0.12422547,114810.0,114800.0,8.90150686]
[1759306967327,0.12422547,114810.0,114800.0,8.92879438]
[1759306967753,0.12422547,114810.0,114800.0,8.81074686]
[1759306968101,0.30361632,114810.0,114800.0,0.01543084]
[1759306968301,0.30361632,114810.0,114800.0,0.10599084]
[1759306968503,0.30361632,114810.0,114800.0,0.26711084]
[1759306968721,0.29161632,114810.0,114800.0,0.35767084]
[1759306969009,0.28840632,114810.0,114800.0,0.34821]
[1759306969208,0.29640632,114810.0,114800.0,0.52242602]
[1759306969428,0.30140632,114810.0,114800.0,0.54742602]
[1759306969622,0.30140632,114810.0,114800.0,0.37321]
[1759306970237,0.28840632,114810.0,114800.0,0.34821]
[1759306970434,0.28840632,114810.0,114800.0,0.34624]
[1759306970849,0.30540632,114810.0,114800.0,0.35024]
[1759306971060,0.31940632,114810.0,114800.0,0.008]
[1759306971264,0.31940632,114810.0,114800.0,0.71668]
[1759306971689,0.31940632,114810.0,114800.0,0.35412]
[1759306972535,0.31940632,114810.0,114800.0,0.008]
[1759306972754,0.31940632,114810.0,114800.0,0.35404]
[1759306973420,0.31940632,114810.0,114800.0,0.008]
[1759306973823,0.31940632,114810.0,114800.0,0.354]
[1759306974373,0.31940632,114810.0,114800.0,0.008]
[1759306974584,0.31940632,114810.0,114800.0,0.35396]
[1759306974796,0.31940632,114810.0,114800.0,0.008]
[1759306975224,0.31940632,114810.0,114800.0,0.35388]
[1759306975434,0.31940632,114810.0,114800.0,0.008]
[1759306975646,0.31940632,114810.0,114800.0,0.3538]
[1759306976502,0.31940632,114810.0,114800.0,0.008]
[1759306976711,0.31940632,114810.0,114800.0,0.3538]
[1759306977492,0.31940632,114810.0,114800.0,0.008]
[1759306977903,0.31940632,114810.0,114800.0,0.35364]
[1759306978391,0.31940632,114810.0,114800.0,0.008]
[1759306978931,0.31940632,114810.0,114800.0,0.35356]
[1759306979983,0.31940632,114810.0,114800.0,0.0986]
[1759306979984,0.34955822,114810.0,114800.0,0.0986]
[1759306980228,0.34955822,114810.0,114800.0,0.008]
[1759306980407,0.34955822,114810.0,114800.0,0.35348]
[1759306980619,0.34955822,114810.0,114800.0,0.008]
[1759306980867,0.17424638,114780.0,114770.0,0.0906]
[1759306981067,0.17424638,114780.0,114770.0,0.09073881]
[1759306981068,0.29875375,114780.0,114770.0,0.09073881]
[1759306981289,0.32291375,114780.0,114770.0,0.26561881]
[1759306981699,0.34908275,114780.0,114770.0,0.26561881]
[1759306982123,0.39208275,114780.0,114770.0,0.26961881]
[1759306982329,0.39208275,114780.0,114770.0,0.00413881]
[1759306982527,0.39208275,114780.0,114770.0,0.11905881]
[1759306982945,0.39208275,114780.0,114770.0,0.00413881]
[1759306983155,0.39208275,114780.0,114770.0,0.13257881]
[1759306983408,0.34908275,114780.0,114770.0,0.12857881]
[1759306983611,0.38508275,114780.0,114770.0,0.12857881]
[1759306984246,0.38508275,114780.0,114770.0,0.16565881]
[1759306984470,0.38508275,114780.0,114770.0,0.25625881]
[1759306984701,0.17429491,114750.0,114740.0,0.36244]
[1759306984930,0.17429491,114750.0,114740.0,0.62945564]
[1759306984931,0.26565038,114750.0,114740.0,0.62945564]
[1759306985140,0.28981038,114750.0,114740.0,0.17641564]
[1759306985346,0.17430712,114740.0,114720.0,0.56122482]
[1759306985562,0.17430712,114740.0,114730.0,8.62947232]
[1759306985773,0.19846712,114740.0,114730.0,0.62947232]
[1759306985990,0.19846712,114740.0,114730.0,0.88431232]
[1759306986196,0.02416,114740.0,114730.0,0.88743232]
[1759306986403,0.11354547,114740.0,114730.0,0.88743232]
[1759306986843,0.11551547,114740.0,114730.0,0.89588176]
[1759306987293,0.11354547,114740.0,114730.0,0.89588176]
[1759306987500,0.12954547,114740.0,114730.0,0.44584176]
[1759306987706,0.12954547,114740.0,114730.0,0.19112176]
[1759306987920,0.30582259,114740.0,114730.0,0.89580176]
[1759306988138,0.30882259,114740.0,114730.0,0.71932944]
[1759306988352,0.30882259,114740.0,114720.0,0.00013922]
[1759306988353,0.17432232,114730.0,114720.0,0.00013922]
[1759306988588,0.26370779,114730.0,114720.0,0.00013922]
[1759306988793,0.29283779,114730.0,114720.0,0.71928678]
[1759306989002,0.29283779,114730.0,114720.0,0.01152678]
[1759306989211,0.29283779,114730.0,114720.0,0.71928678]
[1759306989442,0.29283779,114730.0,114720.0,0.01152678]
[1759306989650,0.29283779,114730.0,114720.0,0.35676678]
[1759306989855,0.29783779,114730.0,114720.0,0.35676678]
[1759306990071,0.29783779,114730.0,114720.0,0.35672678]
[1759306990282,0.11854547,114730.0,114720.0,0.56509183]
[1759306990722,0.12354547,114730.0,114720.0,8.56509183]
[1759306993484,0.12354547,114730.0,114720.0,8.90509183]
[1759306993485,0.03416,114730.0,114720.0,8.90509183]
[1759306994390,0.02416,114730.0,114720.0,8.90509183]
[1759306994803,0.03216,114730.0,114720.0,8.96700781]
[1759306995204,0.02416,114730.0,114720.0,8.96700781]
[1759306996080,0.03216,114730.0,114720.0,9.23984781]
[1759306996300,0.03216,114730.0,114720.0,8.62280781]
[1759306996510,0.03216,114730.0,114720.0,9.69308781]
[1759306996724,0.04016,114730.0,114720.0,9.69908781]
[1759306997559,0.04016,114730.0,114720.0,9.08200781]
[1759306997767,0.04016,114730.0,114720.0,9.33660781]
[1759306997997,0.04016,114730.0,114720.0,9.24592781]
[1759306998184,0.04016,114730.0,114720.0,9.27465183]
[1759306999790,0.04016,114730.0,114720.0,8.82145183]
[1759307000003,0.04016,114730.0,114720.0,9.27465183]
[1759307000533,0.04016,114730.0,114720.0,8.56689183]
[1759307000742,0.04016,114730.0,114720.0,9.27465183]
[1759307002095,0.04016,114730.0,114720.0,8.56689183]
[1759307002324,0.04016,114730.0,114720.0,9.27461183]
[1759307003400,0.04016,114730.0,114720.0,8.82129183]
[1759307003587,0.04016,114730.0,114720.0,9.27441183]
[1759307003839,0.04016,114730.0,114720.0,8.56689183]
[1759307004065,0.04016,114730.0,114720.0,9.27437183]
[1759307004276,0.20771156,114730.0,114720.0,0.19286429]
[1759307004488,0.20458156,114730.0,114720.0,0.54002429]
[1759307004710,0.20250156,114730.0,114720.0,0.54295429]
[1759307005141,0.18650156,114730.0,114720.0,0.53595429]
[1759307005358,0.36603388,114730.0,114720.0,0.01252678]
[1759307005587,0.36603388,114730.0,114720.0,0.72000678]
[1759307005588,0.37403388,114730.0,114720.0,0.72000678]
[1759307006072,0.37403388,114730.0,114720.0,0.71900678]
[1759307006073,0.36603388,114730.0,114720.0,0.71900678]
[1759307006287,0.12362547,114730.0,114720.0,0.89650429]
[1759307006500,0.12362547,114730.0,114720.0,8.92823183]
[1759307006501,0.12154547,114730.0,114720.0,8.92823183]
[1759307007768,0.12154547,114730.0,114720.0,8.99014781]
[1759307007995,0.12154547,114730.0,114720.0,8.28266781]
[1759307008202,0.12154547,114730.0,114720.0,8.99014781]
[1759307008413,0.03216,114730.0,114720.0,8.99014781]
[1759307009052,0.03216,114730.0,114720.0,9.33014781]
[1759307009270,0.03216,114730.0,114720.0,9.26823183]
[1759307009482,0.03216,114730.0,114720.0,9.34609853]
[1759307013159,0.03216,114730.0,114720.0,9.25525853]
[1759307013375,0.03216,114730.0,114720.0,9.34589853]
[1759307014219,0.00016214,114730.0,114720.0,9.34589853]
[1759307014451,0.00016214,114730.0,114720.0,8.63861853]
[1759307014640,0.07295609,114750.0,114740.0,0.51430712]
[1759307014851,0.07295609,114750.0,114740.0,9.31267697]
[1759307015058,0.07295609,114750.0,114740.0,8.54819466]
[1759307015270,0.07295609,114750.0,114740.0,9.31774014]
[1759307016456,0.09657609,114750.0,114740.0,9.31774014]
[1759307016637,0.10057609,114750.0,114740.0,9.27331466]
[1759307017575,0.09657609,114750.0,114740.0,9.25531466]
[1759307017995,0.02362,114750.0,114740.0,9.25531466]
[1759307018204,0.02362,114750.0,114740.0,9.3175344]
[1759307018404,0.02362,114750.0,114740.0,9.25531466]
[1759307020713,0.02362,114750.0,114740.0,9.33318136]
[1759307021046,1e-08,114750.0,114740.0,9.33318136]
[1759307021483,1e-08,114750.0,114740.0,8.65012136]
[1759307021684,0.00500001,114750.0,114740.0,9.74556136]
[1759307021888,0.00500001,114750.0,114740.0,8.67612136]
[1759307022074,1e-08,114750.0,114740.0,9.69072382]
[1759307022294,0.00500001,114750.0,114740.0,9.71676382]
[1759307022498,0.00500001,114750.0,114740.0,8.64732382]
[1759307022911,0.00500001,114750.0,114740.0,9.71676382]
[1759307023093,0.00500001,114750.0,114740.0,8.56945712]
[1759307023329,0.00500001,114750.0,114740.0,9.63873712]
[1759307023509,0.00500001,114750.0,114740.0,8.59825466]
[1759307023734,0.00500001,114750.0,114740.0,9.66745466]
[1759307024138,0.00500001,114750.0,114740.0,8.59825466]
[1759307024357,0.00500001,114750.0,114740.0,8.59197712]
[1759307024572,0.00500001,114750.0,114740.0,8.99538952]
[1759307024995,0.00500001,114750.0,114740.0,8.99831952]
[1759307025436,0.00500001,114750.0,114740.0,8.29163952]
[1759307025869,0.09646548,114750.0,114740.0,0.99546952]
[1759307026074,0.09646548,114750.0,114740.0,0.48016712]
[1759307026274,0.09646548,114750.0,114740.0,0.93328712]
[1759307026481,0.00500001,114750.0,114740.0,9.02719706]
[1759307026763,0.3468435,114750.0,114740.0,0.39426]
[1759307026981,0.3468435,114750.0,114740.0,0.39276]
[1759307027205,0.09438548,114750.0,114740.0,0.56922712]
[1759307027626,0.08938548,114750.0,114740.0,0.54322712]
[1759307028421,0.09438548,114750.0,114740.0,0.56422712]
[1759307028626,0.09938548,114750.0,114740.0,0.58815712]
[1759307030399,0.09938548,114750.0,114740.0,8.58815712]
[1759307030611,0.09938548,114750.0,114740.0,8.65033952]
[1759307030816,0.01000001,114750.0,114740.0,8.65033952]
[1759307030994,0.01000001,114750.0,114740.0,8.92815712]
[1759307031188,0.01000001,114750.0,114740.0,9.00602382]
[1759307031762,0.01000001,114750.0,114740.0,9.73110382]
[1759307031963,0.01000001,114750.0,114740.0,9.73106382]
[1759307032205,0.01000001,114750.0,114740.0,8.58395712]
[1759307032382,0.01000001,114750.0,114740.0,9.36854382]
[1759307032790,0.01000001,114750.0,114740.0,8.24395712]
[1759307032953,0.01000001,114750.0,114740.0,8.95067712]
[1759307033621,0.01000001,114750.0,114740.0,8.95051712]
[1759307033793,0.01000001,114750.0,114740.0,8.24102712]
[1759307033994,0.18641194,114750.0,114740.0,8.66574193]
[1759307034205,0.27899741,114750.0,114740.0,8.02863584]
[1759307034462,0.27899741,114750.0,114740.0,0.73523584]
[1759307034659,0.27899741,114750.0,114740.0,0.02863584]
[1759307034862,0.27899741,114750.0,114740.0,0.28207584]
[1759307035066,0.27899741,114750.0,114740.0,0.73519584]
[1759307035271,0.10150548,114750.0,114740.0,0.91161296]
[1759307035486,0.09938548,114750.0,114740.0,0.91370296]
[1759307035902,0.09938548,114750.0,114740.0,0.20714296]
[1759307036102,0.09938548,114750.0,114740.0,0.91165296]
[1759307036279,0.09938548,114750.0,114740.0,0.20505296]
[1759307036507,0.27899741,114750.0,114740.0,0.20294296]
[1759307036716,0.27899741,114750.0,114740.0,0.02863584]
[1759307036954,0.27899741,114750.0,114740.0,0.64467584]
[1759307037354,0.27899741,114750.0,114740.0,0.73531584]
[1759307037974,0.27899741,114750.0,114740.0,0.28211584]
[1759307038179,0.27899741,114750.0,114740.0,0.48183584]
[1759307038533,0.27899741,114750.0,114740.0,0.37271584]
[1759307039359,0.26899741,114750.0,114740.0,0.34408]
[1759307039572,0.31299741,114750.0,114740.0,0.34908]
[1759307039789,0.35699741,114750.0,114740.0,0.35408]
[1759307040222,0.18270548,114750.0,114740.0,0.52838712]
[1759307040441,0.35379741,114750.0,114740.0,0.53049712]
[1759307040648,0.17950548,114750.0,114740.0,0.53049712]
[1759307040858,0.17950548,114750.0,114740.0,0.52838712]
[1759307041077,0.35699741,114750.0,114740.0,0.52838712]
[1759307041287,0.18270548,114750.0,114740.0,0.52838712]
[1759307041500,0.35699741,114750.0,114740.0,0.52838712]
[1759307041954,0.18270548,114750.0,114740.0,0.52838712]
[1759307042766,0.17738548,114750.0,114740.0,0.53049712]
[1759307042973,0.17950548,114750.0,114740.0,0.53049712]
[1759307043181,0.35699741,114750.0,114740.0,0.01]
[1759307043382,0.35699741,114750.0,114740.0,0.89070712]
[1759307043588,0.26899741,114750.0,114740.0,0.88070712]
[1759307043846,0.17430712,114740.0,114730.0,0.19794232]
[1759307044046,0.26581259,114740.0,114730.0,0.94291713]
[1759307044258,0.29253259,114740.0,114730.0,0.94291713]
[1759307044464,0.29253259,114740.0,114730.0,0.23651713]
[1759307044702,0.11822547,114740.0,114730.0,0.94287713]
[1759307045283,0.13022547,114740.0,114730.0,0.94587713]
[1759307045723,0.13022547,114740.0,114730.0,0.06219481]
[1759307045724,0.29253259,114740.0,114730.0,0.06219481]
[1759307045936,0.29253259,114740.0,114730.0,0.51808232]
[1759307046144,0.29853259,114740.0,114730.0,0.34676]
[1759307046573,0.29853259,114740.0,114730.0,0.52108232]
[1759307048780,0.33653259,114740.0,114730.0,0.35176]
[1759307049348,0.29253259,114740.0,114730.0,0.34376]
[1759307049484,0.29253259,114740.0,114730.0,0.51808232]
[1759307050546,0.29253259,114740.0,114730.0,0.88044232]
[1759307052292,0.29253259,114740.0,114730.0,0.94263713]
[1759307052497,0.29253259,114740.0,114730.0,0.88044232]
[1759307052704,0.17432232,114730.0,114720.0,0.27167684]
[1759307052908,0.26582779,114730.0,114720.0,0.52696159]
[1759307053086,0.29254779,114730.0,114720.0,0.9540191]
[1759307053850,0.33054779,114730.0,114720.0,0.9600191]
[1759307054059,0.33054779,114730.0,114720.0,0.5067791]
[1759307054261,0.33054779,114730.0,114720.0,0.9600191]
[1759307054471,0.33354779,114730.0,114720.0,0.9620191]
[1759307054673,0.29254779,114730.0,114720.0,0.9540191]
[1759307054885,0.29254779,114730.0,114720.0,0.9600191]
[1759307055085,0.33054779,114730.0,114720.0,0.9600191]
[1759307055337,0.33054779,114730.0,114720.0,0.07972159]
[1759307055737,0.33054779,114730.0,114720.0,0.34937922]
[1759307055942,0.33054779,114730.0,114720.0,0.34941922]
[1759307057346,0.33054779,114730.0,114720.0,0.00613922]
[1759307057718,0.33054779,114730.0,114720.0,0.34929922]
[1759307059640,0.33054779,114730.0,114720.0,0.09677922]
[1759307059849,0.33054779,114730.0,114720.0,0.34921922]
[1759307060016,0.33054779,114730.0,114720.0,0.00613922]
[1759307060218,0.33054779,114730.0,114720.0,0.34921922]
[1759307060661,0.33054779,114730.0,114720.0,0.00613922]
[1759307060965,0.33054779,114730.0,114720.0,0.30309922]
[1759307061372,0.33054779,114730.0,114720.0,0.00613922]
[1759307061534,0.33054779,114730.0,114720.0,0.34913922]
[1759307061737,0.33054779,114730.0,114720.0,0.00613922]
[1759307061939,0.33054779,114730.0,114720.0,0.34913922]
[1759307062254,0.33054779,114730.0,114720.0,0.25845922]
[1759307062439,0.33054779,114730.0,114720.0,0.34909922]
[1759307063075,0.33054779,114730.0,114720.0,0.00613922]
[1759307063275,0.33054779,114730.0,114720.0,0.34909922]
[1759307063276,0.36069969,114730.0,114720.0,0.34909922]
[1759307063484,0.36069969,114730.0,114720.0,0.25837922]
[1759307063825,0.36069969,114730.0,114720.0,0.00613922]
[1759307064045,0.36069969,114730.0,114720.0,0.34901922]
[1759307064247,0.36069969,114730.0,114720.0,0.00613922]
[1759307064658,0.36069969,114730.0,114720.0,0.14917922]
[1759307064852,0.36069969,114730.0,114720.0,0.00613922]
[1759307065054,0.36069969,114730.0,114720.0,0.25837922]
[1759307065261,0.36069969,114730.0,114720.0,0.34901922]
[1759307065464,0.36069969,114730.0,114720.0,0.00613922]
[1759307065868,0.36069969,114730.0,114720.0,0.14573922]
[1759307066770,0.32269969,114730.0,114720.0,0.34301922]
[1759307067210,0.36569969,114730.0,114720.0,0.00213922]
[1759307067412,0.36569969,114730.0,114720.0,0.34501922]
[1759307068238,0.38869969,114730.0,114720.0,0.34801922]
[1759307068657,0.32269969,114730.0,114720.0,0.34301922]
[1759307070040,0.83160471,114730.0,114720.0,0.34301922]
[1759307078474,0.83160471,114730.0,114720.0,0.00013922]
[1759307078602,0.83160471,114730.0,114720.0,0.34305922]
[1759307079571,0.83160471,114730.0,114720.0,0.00013922]
[1759307079698,0.83160471,114730.0,114720.0,0.34305922]
[1759307081442,0.38870471,114730.0,114720.0,0.34305922]
[1759307082207,0.38870471,114730.0,114720.0,0.25237922]
[1759307082418,0.38870471,114730.0,114720.0,0.34305922]
[1759307082614,0.38870471,114730.0,114720.0,0.25237922]
[1759307082817,0.38870471,114730.0,114720.0,0.00013922]
[1759307083015,0.38870471,114730.0,114720.0,0.34305922]
[1759307084007,0.35855281,114730.0,114720.0,0.34305922]
[1759307084809,0.29254779,114730.0,114720.0,0.34305922]
[1759307089959,0.11290547,114730.0,114720.0,0.51937673]
[1759307090178,0.29233779,114730.0,114720.0,0.94227154]
[1759307091554,0.29233779,114730.0,114720.0,0.23667154]
[1759307091960,0.29233779,114730.0,114720.0,0.76785403]
[1759307092487,0.29233779,114730.0,114720.0,0.31453403]
[1759307092696,0.29233779,114730.0,114720.0,0.76785403]
[1759307093508,0.29233779,114730.0,114720.0,0.70565922]
[1759307094000,0.29233779,114730.0,114720.0,0.00013922]
[1759307094444,0.29233779,114730.0,114720.0,0.34297922]
[1759307095286,0.29233779,114730.0,114720.0,0.25229922]
[1759307095499,0.29233779,114730.0,114720.0,0.34293922]
[1759307095703,0.29233779,114730.0,114720.0,0.00013922]
[1759307095913,0.29233779,114730.0,114720.0,0.34293922]
[1759307096127,0.29233779,114730.0,114720.0,0.51727673]
[1759307096339,0.28918779,114730.0,114720.0,0.51941673]
[1759307096543,0.28918779,114730.0,114720.0,0.51727673]
[1759307096770,0.29234779,114730.0,114720.0,0.51727673]
[1759307097016,0.11802547,114730.0,114720.0,0.51727673]
[1759307097197,0.29234779,114730.0,114720.0,0.51727673]
[1759307097767,0.28722779,114730.0,114720.0,0.51941673]
[1759307098162,0.30622779,114730.0,114720.0,0.52241673]
[1759307098384,0.32522779,114730.0,114720.0,0.52541673]
[1759307098523,0.15090547,114730.0,114720.0,0.52750673]
[1759307098725,0.32522779,114730.0,114720.0,0.52541673]
[1759307099742,0.32732779,114730.0,114720.0,0.52541673]
[1759307100456,0.32522779,114730.0,114720.0,0.52541673]
[1759307100721,0.15090547,114730.0,114720.0,0.52541673]
[1759307100923,0.15090547,114730.0,114720.0,0.58761154]
[1759307101959,0.15090547,114730.0,114720.0,0.58970154]
[1759307102177,0.15090547,114730.0,114720.0,0.52750673]
[1759307102380,0.15090547,114730.0,114720.0,0.89014673]
[1759307102589,0.15090547,114730.0,114720.0,0.45332]
[1759307102794,0.15090547,114730.0,114720.0,8.62765751]
[1759307103002,0.06152,114730.0,114720.0,8.96765751]
[1759307103210,0.06152,114730.0,114720.0,8.51433751]
[1759307103416,0.06152,114730.0,114720.0,9.33033751]
[1759307103840,0.06152,114730.0,114720.0,9.12913751]
[1759307104070,0.06152,114730.0,114720.0,8.51433751]
[1759307104274,0.06152,114730.0,114720.0,8.55000161]
[1759307104544,0.06152,114730.0,114720.0,9.61804161]
[1759307104721,0.02952,114730.0,114720.0,9.62804161]
[1759307105102,0.03452,114730.0,114720.0,9.63904161]
[1759307105304,0.02352,114730.0,114720.0,9.61804161]
[1759307106192,0.02352,114730.0,114720.0,9.36592161]
[1759307106391,0.03062,114730.0,114720.0,8.67228161]
[1759307106616,0.20284232,114730.0,114720.0,8.86217724]
[1759307106820,0.12316547,114730.0,114720.0,8.86213724]
[1759307107053,0.29748779,114730.0,114720.0,8.86213724]
[1759307107254,0.12316547,114730.0,114720.0,8.86213724]
[1759307107395,0.12000547,114730.0,114720.0,8.89093924]
[1759307108002,0.12000547,114730.0,114720.0,8.77149724]
[1759307108192,0.12316547,114730.0,114720.0,8.86213724]
[1759307109729,0.12316547,114730.0,114720.0,0.009]
[1759307109730,0.29748779,114730.0,114720.0,0.009]
[1759307109897,0.29748779,114730.0,114720.0,0.46228]
[1759307110115,0.29748779,114730.0,114720.0,0.62372]
[1759307110317,0.29748779,114730.0,114720.0,0.71436]
[1759307110520,0.11790547,114730.0,114720.0,0.91749951]
[1759307110725,0.11290547,114730.0,114720.0,8.90849951]
[1759307110926,0.11290547,114730.0,114720.0,8.91349951]
[1759307111115,0.14790547,114730.0,114720.0,8.91549951]
[1759307111323,0.17290547,114730.0,114720.0,8.91549951]
[1759307111749,0.08352,114730.0,114720.0,9.22669751]
[1759307111950,0.08352,114730.0,114720.0,8.98419768]
[1759307112149,0.08352,114730.0,114720.0,8.97694291]
[1759307112355,0.24721765,114770.0,114750.0,0.1742784]
[1759307112524,0.26576222,114760.0,114750.0,0.1742784]
[1759307112733,0.09464547,114760.0,114750.0,0.6275584]
[1759307113134,0.26892222,114760.0,114750.0,0.1742784]
[1759307113339,0.26892222,114760.0,114750.0,0.70536]
[1759307113542,0.26892222,114760.0,114750.0,0.87965193]
[1759307113840,0.26892222,114760.0,114750.0,0.87961193]
[1759307114439,0.29390222,114760.0,114750.0,0.87961193]
[1759307114659,0.29390222,114760.0,114750.0,0.17429193]
[1759307114869,0.29790222,114760.0,114750.0,0.91561193]
[1759307115277,0.12046547,114760.0,114750.0,0.91561193]
[1759307115478,0.12446547,114760.0,114750.0,0.95161193]
[1759307115718,0.29874222,114760.0,114750.0,0.95161193]
[1759307115938,0.30190222,114760.0,114750.0,0.24629193]
[1759307116135,0.30190222,114760.0,114750.0,0.072]
[1759307116368,0.30190222,114760.0,114750.0,0.95157193]
[1759307117325,0.30190222,114760.0,114750.0,0.072]
[1759307117531,0.30190222,114760.0,114750.0,0.77728]
[1759307117738,0.30190222,114760.0,114750.0,0.072]
[1759307117945,0.30190222,114760.0,114750.0,0.95157193]
[1759307118162,0.29664222,114760.0,114750.0,0.95157193]
[1759307118376,0.12446547,114760.0,114750.0,0.95157193]
[1759307118590,0.12236547,114760.0,114750.0,0.95157193]
[1759307119363,0.29664222,114760.0,114750.0,0.24629193]
[1759307119566,0.12236547,114760.0,114750.0,0.95157193]
[1759307119837,0.12236547,114760.0,114750.0,0.24629193]
[1759307120037,0.12236547,114760.0,114750.0,0.95157193]
[1759307120235,0.12236547,114760.0,114750.0,8.95157193]
[1759307120826,0.12236547,114760.0,114750.0,8.24629193]
[1759307121058,0.29664222,114760.0,114750.0,8.24629193]
[1759307121257,0.29861222,114760.0,114750.0,0.24629193]
[1759307121458,0.30158222,114760.0,114750.0,0.95153193]
[1759307121823,0.30158222,114760.0,114750.0,0.24629193]
[1759307122045,0.30158222,114760.0,114750.0,0.95153193]
[1759307122251,0.30158222,114760.0,114750.0,0.24629193]
[1759307122455,0.12730547,114760.0,114750.0,0.95153193]
[1759307122665,0.30158222,114760.0,114750.0,0.95153193]
[1759307123082,0.30158222,114760.0,114750.0,0.24629193]
[1759307123296,0.30158222,114760.0,114750.0,0.95153193]
[1759307123712,0.30158222,114760.0,114750.0,0.24629193]
[1759307123982,0.30158222,114760.0,114750.0,0.95153193]
[1759307126123,0.74448222,114760.0,114750.0,0.95153193]
[1759307126733,0.56526547,114760.0,114750.0,0.24629193]
[1759307126940,0.56723547,114760.0,114750.0,0.24629193]
[1759307127147,0.74151222,114760.0,114750.0,0.24629193]
[1759307127366,0.74448222,114760.0,114750.0,0.95149193]
[1759307127980,0.74448222,114760.0,114750.0,0.072]
[1759307128210,0.74448222,114760.0,114750.0,0.95149193]
[1759307129752,0.74448222,114760.0,114750.0,0.24629193]
[1759307129961,0.57020547,114760.0,114750.0,0.95149193]
[1759307130110,0.74448222,114760.0,114750.0,0.95149193]
[1759307130801,0.74448222,114760.0,114750.0,0.24629193]
[1759307130932,0.74448222,114760.0,114750.0,0.49829193]
[1759307131130,0.74448222,114760.0,114750.0,0.24629193]
[1759307131369,0.74448222,114760.0,114750.0,0.95149193]
[1759307131600,0.56723547,114760.0,114750.0,0.95149193]
[1759307131917,0.74448222,114760.0,114750.0,0.95149193]
[1759307132389,0.57020547,114760.0,114750.0,0.95149193]
[1759307132875,0.74448222,114760.0,114750.0,0.95149193]
[1759307133252,0.74448222,114760.0,114750.0,0.24629193]
[1759307133459,0.74448222,114760.0,114750.0,0.95149193]
[1759307133800,0.57020547,114760.0,114750.0,1.01371164]
[1759307133928,0.74448222,114760.0,114750.0,1.01371164]
[1759307134333,0.74448222,114760.0,114750.0,0.92307164]
[1759307134539,0.74448222,114760.0,114750.0,0.7772]
[1759307134761,0.74448222,114760.0,114750.0,0.95149193]